[Event "Titled Tuesday Blitz May 2 Late 2023"]
[White "Prem, Pranav"]
[Black "Debray, Christopher"]
[WhiteFideId "30901057"]
[BlackFideId "630810"]
[WhiteElo "1970"]
[BlackElo "2340"]
[Result "1-0"]
[Round "06"]
[TimeControl "180+2"]
[Date "2023.05.02"]
[WhiteClock "0:00:11"]
[BlackClock "0:00:02"]

1. d4 {[%clk 0:03:00]}  d5 {[%clk 0:02:59]} 2. c4 {[%clk 0:02:58]}  e6 {[%clk 0:02:58]} 3. Nc3 {[%clk 0:02:56]}  Nf6 {[%clk 0:02:58]} 4. cxd5 {[%clk 0:02:54]}  exd5 {[%clk 0:02:58]} 5. Bg5 {[%clk 0:02:52]}  c6 {[%clk 0:02:57]} 6. e3 {[%clk 0:02:49]}  Bf5 {[%clk 0:02:49]} 7. Qf3 {[%clk 0:02:49]}  Bg6 {[%clk 0:02:41]} 8. Bxf6 {[%clk 0:02:47]}  Qxf6 {[%clk 0:02:40]} 9. Qxf6 {[%clk 0:02:47]}  gxf6 {[%clk 0:02:41]} 10. Nge2 {[%clk 0:02:44]}  Bd6 {[%clk 0:02:34]} 11. h4 {[%clk 0:02:35]}  h5 {[%clk 0:02:31]} 12. g3 {[%clk 0:02:19]}  Na6 {[%clk 0:02:20]} 13. Nf4 {[%clk 0:02:08]}  Nc7 {[%clk 0:01:51]} 14. Rc1 {[%clk 0:01:53]}  Ne6 {[%clk 0:01:32]} 15. Be2 {[%clk 0:01:52]}  Nxf4 {[%clk 0:01:20]} 16. gxf4 {[%clk 0:01:50]}  Kd7 {[%clk 0:01:17]} 17. Kd2 {[%clk 0:01:41]}  Rae8 {[%clk 0:01:15]} 18. a3 {[%clk 0:01:29]}  Re7 {[%clk 0:01:09]} 19. b4 {[%clk 0:01:08]}  a6 {[%clk 0:01:05]} 20. Na4 {[%clk 0:01:02]}  Rhe8 {[%clk 0:00:55]} 21. Bf3 {[%clk 0:00:47]}  Rg8 {[%clk 0:00:27]} 22. Rhg1 {[%clk 0:00:45]}  Ree8 {[%clk 0:00:25]} 23. Nc5+ {[%clk 0:00:41]}  Kc7 {[%clk 0:00:22]} 24. Bxd5 {[%clk 0:00:20]}  cxd5 {[%clk 0:00:20]} 25. f5 {[%clk 0:00:20]}  Bxf5 {[%clk 0:00:09]} 26. Ne4+ {[%clk 0:00:21]}  Kd8 {[%clk 0:00:07]} 27. Nxd6 {[%clk 0:00:21]}  Rxg1 {[%clk 0:00:06]} 28. Rxg1 {[%clk 0:00:22]}  Re6 {[%clk 0:00:04]} 29. Nxf5 {[%clk 0:00:22]}  Rc6 {[%clk 0:00:05]} 30. Rg8+ {[%clk 0:00:22]}  Kd7 {[%clk 0:00:05]} 31. Rh8 {[%clk 0:00:21]}  Ke6 {[%clk 0:00:04]} 32. Ng3 {[%clk 0:00:22]}  a5 {[%clk 0:00:03]} 33. Rxh5 {[%clk 0:00:22]}  axb4 {[%clk 0:00:03]} 34. axb4 {[%clk 0:00:23]}  Rc4 {[%clk 0:00:03]} 35. Rh8 {[%clk 0:00:22]}  Rxb4 {[%clk 0:00:03]} 36. Rc8 {[%clk 0:00:23]}  Rb2+ {[%clk 0:00:03]} 37. Rc2 {[%clk 0:00:23]}  Rb3 {[%clk 0:00:03]} 38. h5 {[%clk 0:00:23]}  Ke7 {[%clk 0:00:03]} 39. h6 {[%clk 0:00:24]}  Kf8 {[%clk 0:00:03]} 40. Rc8+ {[%clk 0:00:24]}  Ke7 {[%clk 0:00:02]} 41. h7 {[%clk 0:00:25]}  Rb2+ {[%clk 0:00:03]} 42. Kc3 {[%clk 0:00:25]}  Rxf2 {[%clk 0:00:03]} 43. h8=Q {[%clk 0:00:25]}  Rf3 {[%clk 0:00:03]} 44. Qd8+ {[%clk 0:00:23]}  Ke6 {[%clk 0:00:03]} 45. Qe8+ {[%clk 0:00:22]}  Kd6 {[%clk 0:00:03]} 46. Rd8+ {[%clk 0:00:18]}  Kc7 {[%clk 0:00:03]} 47. Qd7+ {[%clk 0:00:17]}  Kb6 {[%clk 0:00:03]} 48. Qd6+ {[%clk 0:00:17]}  Ka7 {[%clk 0:00:03]} 49. Rd7 {[%clk 0:00:12]}  Rxe3+ {[%clk 0:00:02]} 50. Kb4 {[%clk 0:00:11]}  Re1 {[%clk 0:00:02]} 51. Qc5+ {[%clk 0:00:11]} 1-0


[Site "https://www.chess.com"]

[Event "Titled Tuesday Blitz May 2 Late 2023"]
[White "Grinev, Valeriy"]
[Black "Ricaurte Lopez, Juan Carlos"]
[WhiteFideId "14117517"]
[BlackFideId "3600327"]
[WhiteElo "2366"]
[BlackElo "2200"]
[Result "1-0"]
[Round "06"]
[TimeControl "180+2"]
[Date "2023.05.02"]
[WhiteClock "0:00:30"]
[BlackClock "0:00:03"]

1. e4 {[%clk 0:03:00]}  c5 {[%clk 0:02:59]} 2. Nc3 {[%clk 0:03:01]}  d6 {[%clk 0:02:57]} 3. Nf3 {[%clk 0:03:02]}  Nf6 {[%clk 0:02:56]} 4. g3 {[%clk 0:03:02]}  Nc6 {[%clk 0:02:55]} 5. Bg2 {[%clk 0:03:03]}  g6 {[%clk 0:02:54]} 6. O-O {[%clk 0:03:03]}  Bg7 {[%clk 0:02:53]} 7. Re1 {[%clk 0:03:04]}  O-O {[%clk 0:02:53]} 8. d4 {[%clk 0:03:05]}  Bg4 {[%clk 0:02:49]} 9. d5 {[%clk 0:03:03]}  Nd4 {[%clk 0:02:48]} 10. Qd3 {[%clk 0:03:02]}  Bxf3 {[%clk 0:02:44]} 11. Bxf3 {[%clk 0:03:00]}  Nxf3+ {[%clk 0:02:43]} 12. Qxf3 {[%clk 0:03:01]}  Nd7 {[%clk 0:02:39]} 13. Qe2 {[%clk 0:03:00]}  a6 {[%clk 0:02:38]} 14. a4 {[%clk 0:02:59]}  Rb8 {[%clk 0:02:34]} 15. Kg2 {[%clk 0:02:58]}  Qc7 {[%clk 0:02:26]} 16. h4 {[%clk 0:02:55]}  c4 {[%clk 0:02:25]} 17. h5 {[%clk 0:02:55]}  b5 {[%clk 0:02:25]} 18. axb5 {[%clk 0:02:54]}  axb5 {[%clk 0:02:23]} 19. Be3 {[%clk 0:02:44]}  Rb7 {[%clk 0:02:18]} 20. Rh1 {[%clk 0:02:38]}  e6 {[%clk 0:02:18]} 21. hxg6 {[%clk 0:02:35]}  hxg6 {[%clk 0:02:12]} 22. dxe6 {[%clk 0:02:36]}  fxe6 {[%clk 0:02:12]} 23. Qg4 {[%clk 0:02:35]}  Kf7 {[%clk 0:02:02]} 24. Rh7 {[%clk 0:02:34]}  b4 {[%clk 0:01:50]} 25. Bh6 {[%clk 0:02:12]}  Rg8 {[%clk 0:01:50]} 26. Ne2 {[%clk 0:02:02]}  Nf6 {[%clk 0:01:43]} 27. Qf3 {[%clk 0:02:00]}  Qc6 {[%clk 0:01:38]} 28. Rxg7+ {[%clk 0:01:47]}  Rxg7 {[%clk 0:01:34]} 29. Bxg7 {[%clk 0:01:48]}  Kxg7 {[%clk 0:01:32]} 30. Nd4 {[%clk 0:01:46]}  Qxe4 {[%clk 0:01:20]} 31. Qxe4 {[%clk 0:01:46]}  Nxe4 {[%clk 0:01:19]} 32. Nxe6+ {[%clk 0:01:47]}  Kf6 {[%clk 0:01:16]} 33. Nf4 {[%clk 0:01:47]}  g5 {[%clk 0:01:09]} 34. Nd5+ {[%clk 0:01:47]}  Ke5 {[%clk 0:01:09]} 35. Ra5 {[%clk 0:01:46]}  Nc5 {[%clk 0:01:04]} 36. Ne3 {[%clk 0:01:44]}  c3 {[%clk 0:00:59]} 37. bxc3 {[%clk 0:01:43]}  bxc3 {[%clk 0:00:59]} 38. Nc4+ {[%clk 0:01:38]}  Kd5 {[%clk 0:00:56]} 39. Ne3+ {[%clk 0:01:34]}  Ke5 {[%clk 0:00:46]} 40. Kf3 {[%clk 0:01:27]}  Kd4 {[%clk 0:00:34]} 41. Kg4 {[%clk 0:01:15]}  Rb2 {[%clk 0:00:20]} 42. Nf5+ {[%clk 0:00:53]}  Ke5 {[%clk 0:00:17]} 43. f4+ {[%clk 0:00:48]}  gxf4 {[%clk 0:00:16]} 44. gxf4+ {[%clk 0:00:49]}  Ke6 {[%clk 0:00:14]} 45. Ne3 {[%clk 0:00:41]}  Ne4 {[%clk 0:00:09]} 46. f5+ {[%clk 0:00:40]}  Kd7 {[%clk 0:00:06]} 47. Kf4 {[%clk 0:00:37]}  Nc5 {[%clk 0:00:04]} 48. Ra7+ {[%clk 0:00:30]}  Kc6 {[%clk 0:00:02]} 49. f6 {[%clk 0:00:30]}  Rb1 {[%clk 0:00:03]} 50. f7 {[%clk 0:00:30]} 1-0


[Site "https://www.chess.com"]

[Event "Titled Tuesday Blitz May 2 Late 2023"]
[White "Van den Dikkenberg, Erik"]
[Black "Golubev, Mikhail"]
[WhiteFideId "1005880"]
[BlackFideId "14100983"]
[WhiteElo "2118"]
[BlackElo "2374"]
[Result "1/2-1/2"]
[Round "06"]
[TimeControl "180+2"]
[Date "2023.05.02"]
[WhiteClock "0:00:11"]
[BlackClock "0:00:03"]

1. e4 {[%clk 0:03:00]}  c5 {[%clk 0:02:56]} 2. Nc3 {[%clk 0:03:00]}  e6 {[%clk 0:02:52]} 3. f4 {[%clk 0:03:01]}  Nc6 {[%clk 0:02:49]} 4. Nf3 {[%clk 0:03:01]}  g6 {[%clk 0:02:49]} 5. Bb5 {[%clk 0:03:00]}  Nd4 {[%clk 0:02:46]} 6. O-O {[%clk 0:02:59]}  Bg7 {[%clk 0:02:31]} 7. a4 {[%clk 0:02:56]}  Ne7 {[%clk 0:02:22]} 8. Nxd4 {[%clk 0:02:51]}  Bxd4+ {[%clk 0:01:58]} 9. Kh1 {[%clk 0:02:50]}  O-O {[%clk 0:01:59]} 10. d3 {[%clk 0:02:43]}  f5 {[%clk 0:01:49]} 11. e5 {[%clk 0:02:39]}  Bxc3 {[%clk 0:01:34]} 12. bxc3 {[%clk 0:02:39]}  b6 {[%clk 0:01:25]} 13. d4 {[%clk 0:02:26]}  c4 {[%clk 0:01:14]} 14. Bxc4 {[%clk 0:02:24]}  Bb7 {[%clk 0:01:14]} 15. Ba3 {[%clk 0:02:15]}  Rc8 {[%clk 0:01:13]} 16. Qe2 {[%clk 0:01:57]}  Rf7 {[%clk 0:00:58]} 17. Bxe7 {[%clk 0:01:55]}  Rxe7 {[%clk 0:00:47]} 18. Ba6 {[%clk 0:01:09]}  Bxa6 {[%clk 0:00:40]} 19. Qxa6 {[%clk 0:01:08]}  Rxc3 {[%clk 0:00:41]} 20. Qxa7 {[%clk 0:01:06]}  d6 {[%clk 0:00:18]} 21. Qa6 {[%clk 0:00:57]}  dxe5 {[%clk 0:00:19]} 22. dxe5 {[%clk 0:00:52]}  Rxc2 {[%clk 0:00:18]} 23. Rad1 {[%clk 0:00:42]}  Qc7 {[%clk 0:00:17]} 24. Qa8+ {[%clk 0:00:27]}  Kg7 {[%clk 0:00:16]} 25. Qf3 {[%clk 0:00:26]}  Rc3 {[%clk 0:00:12]} 26. Qf2 {[%clk 0:00:26]}  Qc6 {[%clk 0:00:09]} 27. Qh4 {[%clk 0:00:25]}  Rf7 {[%clk 0:00:07]} 28. Rd8 {[%clk 0:00:19]}  Rc2 {[%clk 0:00:05]} 29. Rg1 {[%clk 0:00:16]}  Qxa4 {[%clk 0:00:04]} 30. Rb8 {[%clk 0:00:12]}  Qe4 {[%clk 0:00:04]} 31. Qd8 {[%clk 0:00:11]}  Kh6 {[%clk 0:00:02]} 32. Qh4+ {[%clk 0:00:11]}  Kg7 {[%clk 0:00:03]} 33. Qd8 {[%clk 0:00:11]}  Kh6 {[%clk 0:00:03]} 34. Qh4+ {[%clk 0:00:11]}  Kg7 {[%clk 0:00:03]} 1/2-1/2


[Site "https://www.chess.com"]

[Event "Titled Tuesday Blitz May 2 Late 2023"]
[White "Roman, Rodrigo"]
[Black "Bueno, Alfeu Junior Varela"]
[WhiteFideId "3701220"]
[BlackFideId "2108879"]
[WhiteElo "1995"]
[BlackElo "2175"]
[Result "0-1"]
[Round "06"]
[TimeControl "180+2"]
[Date "2023.05.02"]
[WhiteClock "0:00:05"]
[BlackClock "0:00:32"]

1. c4 {[%clk 0:02:59]}  e5 {[%clk 0:02:57]} 2. Nf3 {[%clk 0:02:57]}  Nc6 {[%clk 0:02:57]} 3. Nc3 {[%clk 0:02:56]}  f5 {[%clk 0:02:56]} 4. d3 {[%clk 0:02:54]}  Bb4 {[%clk 0:02:55]} 5. Bd2 {[%clk 0:02:54]}  Nf6 {[%clk 0:02:56]} 6. g3 {[%clk 0:02:54]}  O-O {[%clk 0:02:55]} 7. Bg2 {[%clk 0:02:55]}  d6 {[%clk 0:02:55]} 8. O-O {[%clk 0:02:55]}  Bxc3 {[%clk 0:02:56]} 9. Bxc3 {[%clk 0:02:55]}  f4 {[%clk 0:02:56]} 10. e3 {[%clk 0:02:51]}  Qe8 {[%clk 0:02:55]} 11. exf4 {[%clk 0:02:50]}  exf4 {[%clk 0:02:56]} 12. Qd2 {[%clk 0:02:44]}  fxg3 {[%clk 0:02:41]} 13. fxg3 {[%clk 0:02:38]}  Qh5 {[%clk 0:02:40]} 14. b4 {[%clk 0:02:19]}  Bg4 {[%clk 0:02:39]} 15. b5 {[%clk 0:02:19]}  Ne5 {[%clk 0:02:39]} 16. Nxe5 {[%clk 0:02:16]}  dxe5 {[%clk 0:02:40]} 17. Bxb7 {[%clk 0:02:16]}  Rad8 {[%clk 0:02:40]} 18. Bb4 {[%clk 0:02:07]}  Rfe8 {[%clk 0:02:36]} 19. Bc6 {[%clk 0:02:05]}  Re6 {[%clk 0:02:30]} 20. Rae1 {[%clk 0:02:01]}  e4 {[%clk 0:02:07]} 21. d4 {[%clk 0:01:48]}  Bf3 {[%clk 0:02:06]} 22. d5 {[%clk 0:01:38]}  Re5 {[%clk 0:01:52]} 23. Bc3 {[%clk 0:01:23]}  Rf5 {[%clk 0:01:51]} 24. Bxf6 {[%clk 0:01:15]}  Rxf6 {[%clk 0:01:48]} 25. Rf2 {[%clk 0:01:05]}  Qg4 {[%clk 0:01:37]} 26. Ref1 {[%clk 0:01:00]}  h5 {[%clk 0:01:35]} 27. Rxf3 {[%clk 0:00:49]}  Rxf3 {[%clk 0:01:29]} 28. d6 {[%clk 0:00:37]}  Rxd6 {[%clk 0:01:24]} 29. Bd5+ {[%clk 0:00:37]}  Kh8 {[%clk 0:01:22]} 30. Qe2 {[%clk 0:00:32]}  Rxf1+ {[%clk 0:00:58]} 31. Qxf1 {[%clk 0:00:32]}  Rf6 {[%clk 0:00:56]} 32. Qe1 {[%clk 0:00:30]}  e3 {[%clk 0:00:39]} 33. Kg2 {[%clk 0:00:08]}  Rf2+ {[%clk 0:00:33]} 34. Kg1 {[%clk 0:00:04]}  Qh3 {[%clk 0:00:30]} 35. Qxf2 {[%clk 0:00:04]}  exf2+ {[%clk 0:00:30]} 36. Kxf2 {[%clk 0:00:05]}  Qxh2+ {[%clk 0:00:31]} 37. Bg2 {[%clk 0:00:05]}  h4 {[%clk 0:00:30]} 38. gxh4 {[%clk 0:00:05]}  Qxh4+ {[%clk 0:00:31]} 39. Ke2 {[%clk 0:00:05]}  Qxc4+ {[%clk 0:00:32]} 0-1


[Site "https://www.chess.com"]

[Event "Titled Tuesday Blitz May 2 Late 2023"]
[White "Smith, Shreyas"]
[Black "Gerbelli Neto, Eduardo"]
[WhiteFideId "7400713"]
[BlackFideId "2103281"]
[WhiteElo "2151"]
[BlackElo "2178"]
[Result "0-1"]
[Round "06"]
[TimeControl "180+2"]
[Date "2023.05.02"]
[WhiteClock "0:00:01"]
[BlackClock "0:00:06"]

1. e4 {[%clk 0:03:00]}  e5 {[%clk 0:02:59]} 2. Nf3 {[%clk 0:03:00]}  Nc6 {[%clk 0:02:59]} 3. Bb5 {[%clk 0:03:00]}  a6 {[%clk 0:02:58]} 4. Ba4 {[%clk 0:03:00]}  d6 {[%clk 0:02:56]} 5. c3 {[%clk 0:02:48]}  f5 {[%clk 0:02:55]} 6. exf5 {[%clk 0:02:35]}  Bxf5 {[%clk 0:02:56]} 7. d4 {[%clk 0:02:28]}  e4 {[%clk 0:02:54]} 8. d5 {[%clk 0:02:01]}  exf3 {[%clk 0:02:44]} 9. dxc6 {[%clk 0:01:58]}  b5 {[%clk 0:02:26]} 10. Bc2 {[%clk 0:01:39]}  Qe7+ {[%clk 0:02:17]} 11. Be3 {[%clk 0:01:38]}  fxg2 {[%clk 0:02:16]} 12. Rg1 {[%clk 0:01:38]}  Nh6 {[%clk 0:02:06]} 13. Rxg2 {[%clk 0:01:28]}  O-O-O {[%clk 0:01:55]} 14. Nd2 {[%clk 0:01:18]}  g6 {[%clk 0:01:29]} 15. a4 {[%clk 0:00:53]}  b4 {[%clk 0:01:21]} 16. Qe2 {[%clk 0:00:46]}  Re8 {[%clk 0:00:19]} 17. Qxa6+ {[%clk 0:00:42]}  Kd8 {[%clk 0:00:20]} 18. Bxf5 {[%clk 0:00:41]}  Qe5 {[%clk 0:00:14]} 19. Bd7 {[%clk 0:00:20]}  Bg7 {[%clk 0:00:12]} 20. O-O-O {[%clk 0:00:17]}  bxc3 {[%clk 0:00:12]} 21. Bg5+ {[%clk 0:00:15]}  Bf6 {[%clk 0:00:12]} 22. Bxf6+ {[%clk 0:00:10]}  Qxf6 {[%clk 0:00:13]} 23. Qc8+ {[%clk 0:00:07]}  Ke7 {[%clk 0:00:13]} 24. Re1+ {[%clk 0:00:08]}  Kf7 {[%clk 0:00:11]} 25. Bxe8+ {[%clk 0:00:08]}  Kg7 {[%clk 0:00:10]} 26. Qd7+ {[%clk 0:00:08]}  Kf8 {[%clk 0:00:09]} 27. Nc4 {[%clk 0:00:06]}  cxb2+ {[%clk 0:00:09]} 28. Kb1 {[%clk 0:00:06]}  Nf5 {[%clk 0:00:09]} 29. Bxg6 {[%clk 0:00:03]}  Ng7 {[%clk 0:00:07]} 30. Bh5 {[%clk 0:00:01]}  h6 {[%clk 0:00:06]} 0-1


[Site "https://www.chess.com"]

[Event "Titled Tuesday Blitz May 2 Late 2023"]
[White "Adel, Sara"]
[Black "Napoli, Nicolo"]
[WhiteFideId "10616764"]
[BlackFideId "813702"]
[WhiteElo "1982"]
[BlackElo "2308"]
[Result "1-0"]
[Round "06"]
[TimeControl "180+2"]
[Date "2023.05.02"]
[WhiteClock "0:00:35"]
[BlackClock "0:00:20"]

1. e4 {[%clk 0:03:00]}  d6 {[%clk 0:03:00]} 2. Nc3 {[%clk 0:02:59]}  Qd7 {[%clk 0:03:01]} 3. f4 {[%clk 0:02:59]}  h5 {[%clk 0:03:00]} 4. Nf3 {[%clk 0:03:00]}  h4 {[%clk 0:02:59]} 5. Bc4 {[%clk 0:03:00]}  Nc6 {[%clk 0:02:59]} 6. f5 {[%clk 0:02:57]}  e6 {[%clk 0:02:57]} 7. d3 {[%clk 0:02:53]}  Nh6 {[%clk 0:02:53]} 8. O-O {[%clk 0:02:52]}  h3 {[%clk 0:02:51]} 9. g3 {[%clk 0:02:51]}  a6 {[%clk 0:02:37]} 10. fxe6 {[%clk 0:02:51]}  fxe6 {[%clk 0:02:36]} 11. Ng5 {[%clk 0:02:51]}  Qe7 {[%clk 0:02:33]} 12. Qh5+ {[%clk 0:02:43]}  Kd8 {[%clk 0:02:29]} 13. Nxe6+ {[%clk 0:02:38]}  Bxe6 {[%clk 0:02:11]} 14. Bg5 {[%clk 0:02:38]}  Bxc4 {[%clk 0:02:06]} 15. dxc4 {[%clk 0:02:37]}  Ne5 {[%clk 0:01:59]} 16. Nd5 {[%clk 0:02:34]}  Nhf7 {[%clk 0:01:33]} 17. Bxe7+ {[%clk 0:02:13]}  Bxe7 {[%clk 0:01:33]} 18. Qf5 {[%clk 0:02:08]}  c6 {[%clk 0:01:20]} 19. Nb6 {[%clk 0:01:53]}  Rb8 {[%clk 0:01:16]} 20. c5 {[%clk 0:01:38]}  Kc7 {[%clk 0:01:13]} 21. Qe6 {[%clk 0:01:37]}  Bf6 {[%clk 0:01:05]} 22. Rad1 {[%clk 0:01:23]}  Rbe8 {[%clk 0:01:02]} 23. Qb3 {[%clk 0:01:14]}  dxc5 {[%clk 0:00:57]} 24. Nc4 {[%clk 0:01:12]}  b5 {[%clk 0:00:54]} 25. Nxe5 {[%clk 0:01:11]}  Nxe5 {[%clk 0:00:55]} 26. Rf5 {[%clk 0:01:09]}  Rd8 {[%clk 0:00:53]} 27. c3 {[%clk 0:01:07]}  Kb6 {[%clk 0:00:53]} 28. a4 {[%clk 0:01:00]}  c4 {[%clk 0:00:51]} 29. Qc2 {[%clk 0:00:48]}  Rd3 {[%clk 0:00:52]} 30. Rxd3 {[%clk 0:00:47]}  cxd3 {[%clk 0:00:49]} 31. Qf2+ {[%clk 0:00:47]}  c5 {[%clk 0:00:48]} 32. Rxf6+ {[%clk 0:00:46]}  gxf6 {[%clk 0:00:45]} 33. Qxf6+ {[%clk 0:00:46]}  Ka5 {[%clk 0:00:38]} 34. Qxh8 {[%clk 0:00:36]}  Nf3+ {[%clk 0:00:35]} 35. Kf2 {[%clk 0:00:36]}  d2 {[%clk 0:00:23]} 36. Qd8+ {[%clk 0:00:35]}  Kxa4 {[%clk 0:00:20]} 37. Kxf3 {[%clk 0:00:35]} 1-0


[Site "https://www.chess.com"]

[Event "Titled Tuesday Blitz May 2 Late 2023"]
[White "Urbina Perez, Juan Antonio"]
[Black "Kapp, Martin"]
[WhiteFideId "2217368"]
[BlackFideId "24651680"]
[WhiteElo "2197"]
[BlackElo "2177"]
[Result "1-0"]
[Round "06"]
[TimeControl "180+2"]
[Date "2023.05.02"]
[WhiteClock "0:01:35"]
[BlackClock "0:00:01"]

1. e4 {[%clk 0:02:54]}  e6 {[%clk 0:02:59]} 2. d4 {[%clk 0:02:52]}  d5 {[%clk 0:02:59]} 3. Nd2 {[%clk 0:02:52]}  c5 {[%clk 0:02:58]} 4. exd5 {[%clk 0:02:52]}  exd5 {[%clk 0:02:58]} 5. Ngf3 {[%clk 0:02:52]}  Nf6 {[%clk 0:02:58]} 6. Bb5+ {[%clk 0:02:53]}  Nc6 {[%clk 0:02:58]} 7. O-O {[%clk 0:02:52]}  Be7 {[%clk 0:02:36]} 8. dxc5 {[%clk 0:02:52]}  Bxc5 {[%clk 0:02:36]} 9. Re1+ {[%clk 0:02:50]}  Be7 {[%clk 0:02:35]} 10. Qe2 {[%clk 0:02:48]}  h6 {[%clk 0:02:16]} 11. Nd4 {[%clk 0:02:45]}  Kf8 {[%clk 0:01:34]} 12. Bxc6 {[%clk 0:02:41]}  Bc5 {[%clk 0:01:32]} 13. N4b3 {[%clk 0:02:30]}  Bg4 {[%clk 0:01:30]} 14. Qd3 {[%clk 0:02:14]}  Bxf2+ {[%clk 0:01:04]} 15. Kxf2 {[%clk 0:02:15]}  Qb6+ {[%clk 0:01:04]} 16. Qd4 {[%clk 0:02:09]}  Qxc6 {[%clk 0:00:51]} 17. Qc5+ {[%clk 0:02:08]}  Qxc5+ {[%clk 0:00:47]} 18. Nxc5 {[%clk 0:02:09]}  Rc8 {[%clk 0:00:44]} 19. h3 {[%clk 0:02:03]}  Rxc5 {[%clk 0:00:39]} 20. hxg4 {[%clk 0:02:03]}  Rxc2 {[%clk 0:00:37]} 21. Kf1 {[%clk 0:02:00]}  Nxg4 {[%clk 0:00:35]} 22. Nf3 {[%clk 0:01:58]}  g5 {[%clk 0:00:27]} 23. Re2 {[%clk 0:01:52]}  Rc6 {[%clk 0:00:18]} 24. Bd2 {[%clk 0:01:51]}  Re6 {[%clk 0:00:18]} 25. Rae1 {[%clk 0:01:48]}  Ke7 {[%clk 0:00:16]} 26. Bb4+ {[%clk 0:01:47]}  Kd7 {[%clk 0:00:14]} 27. Ne5+ {[%clk 0:01:45]}  Nxe5 {[%clk 0:00:13]} 28. Rxe5 {[%clk 0:01:46]}  Rf6+ {[%clk 0:00:02]} 29. Kg1 {[%clk 0:01:44]}  Kc6 {[%clk 0:00:03]} 30. Rc1+ {[%clk 0:01:39]}  Kb5 {[%clk 0:00:03]} 31. a3 {[%clk 0:01:39]}  Rd8 {[%clk 0:00:01]} 32. Be7 {[%clk 0:01:35]}  Re8 {[%clk 0:00:01]} 33. Bxf6 {[%clk 0:01:35]} 1-0


[Site "https://www.chess.com"]

[Event "Titled Tuesday Blitz May 2 Late 2023"]
[White "Fajdetic, Hrvoje"]
[Black "Fernandez Madrid, Carlos"]
[WhiteFideId "14501945"]
[BlackFideId "2206030"]
[WhiteElo "2185"]
[BlackElo "2082"]
[Result "0-1"]
[Round "06"]
[TimeControl "180+2"]
[Date "2023.05.02"]
[WhiteClock "0:01:11"]
[BlackClock "0:01:57"]

1. f4 {[%clk 0:02:56]}  g6 {[%clk 0:02:49]} 2. e4 {[%clk 0:02:55]}  Bg7 {[%clk 0:02:49]} 3. Nf3 {[%clk 0:02:55]}  c5 {[%clk 0:02:49]} 4. d3 {[%clk 0:02:55]}  Nc6 {[%clk 0:02:48]} 5. c3 {[%clk 0:02:54]}  d6 {[%clk 0:02:48]} 6. Be2 {[%clk 0:02:55]}  Nf6 {[%clk 0:02:48]} 7. O-O {[%clk 0:02:54]}  O-O {[%clk 0:02:48]} 8. Qe1 {[%clk 0:02:53]}  e6 {[%clk 0:02:48]} 9. Qh4 {[%clk 0:02:53]}  Nh5 {[%clk 0:02:47]} 10. Qh3 {[%clk 0:02:44]}  d5 {[%clk 0:02:47]} 11. Ng5 {[%clk 0:02:38]}  h6 {[%clk 0:02:29]} 12. Bxh5 {[%clk 0:02:19]}  hxg5 {[%clk 0:02:24]} 13. Bf3 {[%clk 0:01:55]}  gxf4 {[%clk 0:02:21]} 14. exd5 {[%clk 0:01:49]}  exd5 {[%clk 0:02:20]} 15. Bg4 {[%clk 0:01:45]}  Bxg4 {[%clk 0:02:17]} 16. Qxg4 {[%clk 0:01:46]}  Ne5 {[%clk 0:02:17]} 17. Qd1 {[%clk 0:01:42]}  c4 {[%clk 0:02:16]} 18. dxc4 {[%clk 0:01:39]}  dxc4 {[%clk 0:02:14]} 19. Bxf4 {[%clk 0:01:39]}  Qxd1 {[%clk 0:02:10]} 20. Rxd1 {[%clk 0:01:40]}  Nd3 {[%clk 0:02:10]} 21. Bg3 {[%clk 0:01:31]}  Nxb2 {[%clk 0:02:09]} 22. Rd7 {[%clk 0:01:29]}  Rad8 {[%clk 0:02:06]} 23. Rxd8 {[%clk 0:01:26]}  Rxd8 {[%clk 0:02:05]} 24. Na3 {[%clk 0:01:27]}  Bxc3 {[%clk 0:02:04]} 25. Rc1 {[%clk 0:01:10]}  Bd4+ {[%clk 0:02:04]} 26. Bf2 {[%clk 0:01:10]}  Bxf2+ {[%clk 0:01:57]} 27. Kxf2 {[%clk 0:01:11]}  Nd3+ {[%clk 0:01:57]} 0-1


[Site "https://www.chess.com"]

[Event "Titled Tuesday Blitz May 2 Late 2023"]
[White "Wang, Alexander J"]
[Black "Vifleemskaia, Svetlana"]
[WhiteFideId "30955270"]
[BlackFideId "4129490"]
[WhiteElo "1815"]
[BlackElo "1930"]
[Result "0-1"]
[Round "06"]
[TimeControl "180+2"]
[Date "2023.05.02"]
[WhiteClock "0:00:11"]
[BlackClock "0:00:32"]

1. e4 {[%clk 0:03:00]}  e5 {[%clk 0:02:58]} 2. Nf3 {[%clk 0:03:00]}  Nc6 {[%clk 0:02:57]} 3. Bb5 {[%clk 0:02:59]}  a6 {[%clk 0:02:57]} 4. Ba4 {[%clk 0:02:59]}  Nf6 {[%clk 0:02:57]} 5. d4 {[%clk 0:02:57]}  b5 {[%clk 0:02:52]} 6. dxe5 {[%clk 0:02:54]}  Nxe4 {[%clk 0:02:52]} 7. Bb3 {[%clk 0:02:53]}  Nc5 {[%clk 0:02:47]} 8. O-O {[%clk 0:02:39]}  Nxb3 {[%clk 0:02:45]} 9. axb3 {[%clk 0:02:40]}  Be7 {[%clk 0:02:44]} 10. Nc3 {[%clk 0:02:34]}  Bb7 {[%clk 0:02:38]} 11. Nd5 {[%clk 0:02:19]}  O-O {[%clk 0:02:38]} 12. Bf4 {[%clk 0:02:07]}  Nb4 {[%clk 0:02:27]} 13. Nxb4 {[%clk 0:01:59]}  Bxb4 {[%clk 0:02:26]} 14. c3 {[%clk 0:01:44]}  Bc5 {[%clk 0:02:18]} 15. Nd4 {[%clk 0:01:31]}  Qh4 {[%clk 0:02:03]} 16. Bg3 {[%clk 0:01:24]}  Qe4 {[%clk 0:01:59]} 17. f3 {[%clk 0:00:57]}  Qd5 {[%clk 0:01:53]} 18. b4 {[%clk 0:00:56]}  Bb6 {[%clk 0:01:46]} 19. Qd3 {[%clk 0:00:42]}  d6 {[%clk 0:01:31]} 20. exd6 {[%clk 0:00:34]}  cxd6 {[%clk 0:01:31]} 21. Rfe1 {[%clk 0:00:33]}  Rfe8 {[%clk 0:01:25]} 22. Bf2 {[%clk 0:00:22]}  Re5 {[%clk 0:01:19]} 23. Rad1 {[%clk 0:00:13]}  Rae8 {[%clk 0:01:17]} 24. Kf1 {[%clk 0:00:12]}  g6 {[%clk 0:01:08]} 25. Rxe5 {[%clk 0:00:11]}  dxe5 {[%clk 0:01:06]} 26. Ne2 {[%clk 0:00:11]}  Qxd3 {[%clk 0:00:56]} 27. Rxd3 {[%clk 0:00:11]}  Bxf2 {[%clk 0:00:54]} 28. Kxf2 {[%clk 0:00:12]}  e4 {[%clk 0:00:54]} 29. fxe4 {[%clk 0:00:13]}  Rxe4 {[%clk 0:00:47]} 30. Rd8+ {[%clk 0:00:13]}  Kg7 {[%clk 0:00:47]} 31. Rd7 {[%clk 0:00:13]}  Bc6 {[%clk 0:00:38]} 32. Rc7 {[%clk 0:00:13]}  Re6 {[%clk 0:00:35]} 33. Nd4 {[%clk 0:00:12]}  Rf6+ {[%clk 0:00:35]} 34. Kg1 {[%clk 0:00:12]}  Bd5 {[%clk 0:00:32]} 35. Rd7 {[%clk 0:00:11]}  Bc4 {[%clk 0:00:32]} 36. Re7 {[%clk 0:00:11]}  Rf1# {[%clk 0:00:32]} 0-1


[Site "https://www.chess.com"]